fUSD/lending_fUSD_20251221
["ID","MTS","AMOUNT","RATE_DAILY","PERIOD"]
[399370899,1766322789027,-157.07115,0.00011221,2]
[399370900,1766322793333,-198.87405221,0.00011221,2]
[399370901,1766322795358,-329.98778303,0.00011221,2]
[399370902,1766322797954,-216.65457097,0.00011221,2]
[399370903,1766322797976,-25.62974037,0.00011222,2]
[399370905,1766322799507,-185.34531192,0.00011222,2]
[399370906,1766322801026,-89.72234348,0.00011222,2]
[399370907,1766322801052,-181.30809271,0.00011222,2]
[399370908,1766322804491,-252.22505109,0.00011222,2]
[399370910,1766322807577,-122.89936664,0.00011222,2]
[399370911,1766322807598,-87.10063336,0.00011222,2]
[399370912,1766322808715,-173.95475946,0.00011222,2]
[399370913,1766322810231,-333.54423251,0.00011165,2]
[399370915,1766322814000,-173.5434207,0.00011123,2]
[399370916,1766322814022,-79.30546187,0.00011165,2]
[399370917,1766322817307,-196.42208196,0.00011165,2]
[399370918,1766322819439,-326.56624515,0.00011165,2]
[399370919,1766322822093,-160.39927513,0.00011165,2]
[399370921,1766322823618,-232.351131,0.00011165,2]
[399370922,1766322826417,-387.10850435,0.00011165,2]
[399370923,1766322829487,-414.5965565,0.00011165,2]
[399370924,1766322831957,-311.34208565,0.00011165,2]
[399370925,1766322834099,-252.69949488,0.00011165,2]
[399370926,1766322834120,-6.57524127,0.00011222,2]
[399370927,1766322839499,-199.57758253,0.00011222,2]
[399370928,1766322839525,-9.47083648,0.00011222,2]
[399370930,1766322841874,-300.0,0.00011221,2]
[399370931,1766322841901,-58.92804071,0.00011222,2]
[399370933,1766322847416,-314.70385772,0.00011222,2]
[399370935,1766322852704,-116.89726509,0.00011222,2]
[399370936,1766322852734,-393.57619135,0.00011222,2]
[399370937,1766322854299,-106.42380865,0.00011222,2]
[399370938,1766322854326,-500.0,0.00011222,2]
[399370939,1766322854353,-63.86240501,0.00011222,2]
[399370940,1766322856964,-297.29561889,0.00011222,2]
[399370941,1766322858594,-138.8419761,0.00011222,2]
[399370942,1766322858619,-143.49465421,0.00011222,2]
[399370943,1766322861053,-173.29496358,0.00011222,2]
[399370944,1766322864319,-183.21038221,0.00011222,2]
[399370945,1766322864343,-72.32735385,0.00011222,2]
[399370946,1766322869036,-379.64592627,0.00011222,2]
[399370947,1766322871576,-48.02671988,0.00011222,2]
[399370948,1766322871601,-221.90119514,0.00011222,2]
[399370949,1766322871648,321.0,0.00035616,30]
[399370950,1766322873802,-152.33,0.00011222,2]
[399370951,1766322877423,-125.76880486,0.00011222,2]
[399370952,1766322877449,-73.15719136,0.00011222,2]
[399370953,1766322878903,-213.41976482,0.00011222,2]
[399370954,1766322880515,-213.42304382,0.00011222,2]
[399370955,1766322880542,-24.78982983,0.00011222,2]
[399370956,1766322882107,220.0,0.00035,30]
[399370957,1766322882141,-270.34811253,0.00011222,2]
[399370958,1766322884592,-204.86205764,0.00011222,2]
[399370959,1766322884617,-133.73546173,0.00011222,2]
[399370960,1766322886747,-284.76491919,0.00011222,2]
[399370961,1766322890644,-184.80488258,0.00011165,2]
[399370962,1766322894561,-202.20029535,0.00011165,2]
[399370963,1766322896740,-262.43510493,0.00011165,2]
[399370964,1766322898197,-300.0,0.00011165,2]
[399370965,1766322903642,-153.22696793,0.00011165,2]
[399370966,1766322905217,-302.32144684,0.00011165,2]
[399370967,1766322909472,-221.89940778,0.00011165,2]
[399370968,1766322910925,-411.14805633,0.00011165,2]
[399370969,1766322914157,-151.45860541,0.00011165,2]
[399370970,1766322917898,-83.70034485,0.00011165,2]
[399370971,1766322917920,-114.01256745,0.00011221,2]
[399370972,1766322919513,-185.98743255,0.00011221,2]
[399370973,1766322919536,-200.09968494,0.00011221,2]
[399370974,1766322921123,1040.0,0.00035616,30]
[399370975,1766322921669,-99.90031506,0.00011221,2]
[399370976,1766322921692,-243.32495825,0.00011221,2]
[399370977,1766322925791,-378.57726909,0.00011221,2]
[399370981,1766322930675,-297.43605432,0.00011221,2]
[399370982,1766322935407,-186.54601654,0.00011221,2]
[399370983,1766322936990,-94.1157018,0.00011221,2]
[399370984,1766322937013,-91.65174846,0.00011221,2]
[399370985,1766322941419,-246.05689094,0.00011123,2]
[399370986,1766322944152,-185.67015371,0.00011123,2]
[399370987,1766322946129,-159.40377013,0.00011123,2]
[399370988,1766322947676,-219.94280895,0.00011123,2]
[399370989,1766322950445,-164.95514969,0.00011123,2]
[399370990,1766322953098,-19.66244163,0.00011123,2]
[399370991,1766322953121,-192.25977646,0.00011123,2]
[399370992,1766322953145,-58.34825154,0.00011221,2]
[399370993,1766322953174,-81.49961908,0.00011222,2]
[399370994,1766322953203,-0.76742099,0.00011222,2]
[399370995,1766322954570,-238.55285789,0.00011222,2]
[399370996,1766322958617,-227.11927634,0.00011222,2]
[399370997,1766322960130,-33.56044478,0.00011222,2]
[399370998,1766322960154,-218.57869073,0.00011222,2]
[399370999,1766322960183,-205.90028525,0.00011222,2]
[399371000,1766322961615,-300.0,0.00011195,2]
[399371001,1766322963094,-173.31412905,0.00011195,2]
[399371002,1766322967494,-245.35635345,0.00011195,2]
[399371003,1766322969437,-182.34796988,0.00011195,2]
[399371004,1766322971003,-84.19492602,0.00011195,2]
[399371005,1766322971025,-117.84152749,0.00011222,2]
[399371006,1766322974166,-113.75629332,0.00011222,2]
[399371007,1766322974189,-52.72878749,0.00011222,2]
[399371008,1766322976731,-190.17927424,0.00011222,2]
[399371009,1766322976757,-86.3184937,0.00011222,2]
[399371010,1766322979754,-297.40961688,0.00011222,2]
[399371011,1766322981511,-116.27188942,0.00011222,2]
[399371012,1766322981533,-114.69707136,0.00011223,2]
[399371013,1766322983047,-152.85082921,0.00011223,2]
[399371014,1766322985235,-186.31051326,0.00011223,2]
[399371015,1766322985271,-81.16365207,0.00011223,2]
[399371016,1766322988802,-154.78014793,0.00011223,2]
[399371017,1766322988831,-9.52584177,0.00011223,2]
[399371018,1766322989949,-170.87836276,0.00011223,2]
[399371019,1766322991392,-200.0,0.00011223,2]
[399371020,1766322994055,-500.0,0.00011223,2]
[399371021,1766322997162,-155.51146646,0.00011195,2]
[399371022,1766322998677,-300.0,0.00011195,2]
[399371023,1766323001927,-206.21057752,0.00011123,2]
[399371024,1766323004732,-243.50151897,0.00011123,2]
[399371025,1766323007897,-179.20601753,0.00011123,2]
[399371026,1766323009530,-365.66364293,0.00011123,2]
[399371027,1766323012833,-821.09833504,0.00011123,2]
[399371030,1766323016068,-784.85323782,0.00011123,2]
[399371034,1766323045063,-154.65696326,0.00011123,2]
[399371035,1766323066795,-245.87788155,0.00011123,2]
[399371036,1766323069119,-258.0129793,0.00011123,2]
[399371037,1766323072905,-258.0,0.00011123,2]
[399371038,1766323075503,-525.3211824,0.00011123,2]
[399371039,1766323078931,-210.47383197,0.00011123,2]
[399371040,1766323080379,-267.35362993,0.00011123,2]
[399371041,1766323080405,-244.8310071,0.00011123,2]
[399371042,1766323083505,-300.0,0.00011122,2]
[399371043,1766323083530,-86.35411539,0.00011123,2]
[399371044,1766323086215,-290.78269769,0.00011123,2]
[399371045,1766323087762,-306.94332034,0.00011123,2]
[399371046,1766323088609,-278.75097827,0.00011123,2]
[399371047,1766323092786,-819.6714259,0.00011123,2]
[399371048,1766323095236,-248.81349029,0.00011123,2]
[399371049,1766323098533,-285.66798324,0.00011123,2]
[399371053,1766323100872,-271.91861373,0.00011123,2]
[399371054,1766323102755,-300.0,0.00011123,2]
[399371055,1766323104739,-248.79402534,0.00011123,2]
[399371056,1766323106296,-244.57579678,0.00011123,2]
[399371057,1766323109139,-199.81183211,0.00011123,2]
[399371058,1766323112783,-257.71568883,0.00011123,2]
[399371059,1766323114370,-300.01028343,0.00011123,2]
[399371060,1766323116949,-1150.03747858,0.00011123,2]
[399371061,1766323118746,-253.74823937,0.00011123,2]
[399371062,1766323121122,-418.69673778,0.00011123,2]
[399371063,1766323125335,-203.27257388,0.00011123,2]
[399371064,1766323128079,-363.53852109,0.00011123,2]
[399371065,1766323130519,-291.0,0.00011123,2]
[399371066,1766323134331,-411.07924348,0.00011123,2]
[399371067,1766323135969,-316.27529877,0.00011123,2]
[399371068,1766323137965,-310.70716676,0.00011123,2]
[399371069,1766323144434,-295.42528198,0.00011122,2]
[399371070,1766323146446,-4.57471802,0.00011122,2]
[399371071,1766323146468,-400.63180029,0.00011123,2]
[399371073,1766323150206,-290.0590099,0.00011123,2]
[399371074,1766323153363,-10.87877291,0.00011123,2]
[399371075,1766323153385,-195.0,0.00011123,2]
[399371076,1766323153407,-231.57383824,0.00011123,2]
[399371077,1766323156967,-68.42616176,0.00011123,2]
[399371078,1766323156991,-167.46063824,0.00011123,2]
[399371080,1766323164040,-249.12211845,0.00011123,2]
[399371081,1766323165556,-362.74421901,0.00011123,2]
[399371082,1766323169286,-311.89100675,0.00011123,2]
[399371083,1766323170730,-345.20480757,0.00011123,2]
[399371085,1766323175101,-432.37588461,0.00011123,2]
[399371087,1766323178798,-426.5448326,0.00011123,2]
[399371088,1766323181039,-307.091974,0.00011123,2]
[399371093,1766323183888,-338.14115377,0.00011123,2]
[399371095,1766323185400,-34.92867776,0.00011123,2]
[399371096,1766323185422,-220.28951294,0.00011123,2]
[399371099,1766323189531,-188.44094791,0.00011095,2]
[399371100,1766323192164,-259.21871866,0.00011095,2]
[399371101,1766323196757,-178.59647719,0.00011095,2]
[399371102,1766323198344,-355.26961493,0.00011095,2]
[399371103,1766323199883,-270.48258669,0.00011095,2]
[399371104,1766323201923,-211.3932106,0.00011094,2]
[399371106,1766323206319,-183.75773148,0.00011094,2]
[399371107,1766323207350,-251.95836875,0.00011094,2]
[399371109,1766323208730,-182.04815764,0.00011094,2]
[399371110,1766323211848,-370.84253153,0.00011094,2]
[399371111,1766323211874,-32.66252579,0.00011094,2]
[399371112,1766323213822,-267.33747421,0.00011094,2]
[399371113,1766323213846,-75.093482,0.00011095,2]
[399371114,1766323215653,-119.906518,0.00011095,2]
[399371115,1766323215681,-300.0,0.00011095,2]
[399371116,1766323215706,-241.0,0.00011095,2]
[399371117,1766323215728,-1013.55192379,0.00011095,2]
[399371118,1766323218113,-224.60969678,0.00011095,2]
[399371119,1766323221180,-450.32826935,0.00011095,2]
[399371120,1766323223722,-404.79679826,0.00011095,2]
[399371122,1766323229866,-232.38144207,0.00011095,2]
[399371123,1766323231812,-218.52818786,0.00011095,2]
[399371124,1766323234415,5000.0,0.00035616,30]
[399371125,1766323238751,-303.35833651,0.00011095,2]
[399371126,1766323238773,-84.45702646,0.00011095,2]
[399371127,1766323240954,-206.21057752,0.00011095,2]
[399371128,1766323242480,-153.11674228,0.00011095,2]
[399371130,1766323243064,5000.0,0.00035616,30]
[399371131,1766323245566,-307.55340669,0.00011095,2]
[399371132,1766323247492,-218.12887313,0.00011095,2]
[399371133,1766323254024,5000.0,0.00035616,30]
[399371134,1766323254187,-350.2803979,0.00011095,2]
[399371135,1766323255677,-319.37539144,0.00011095,2]
[399371137,1766323257071,-197.21759256,0.00011095,2]
[399371138,1766323258594,-333.1266181,0.00011095,2]
[399371139,1766323262141,-268.49412869,0.00011095,2]
[399371143,1766323266765,-226.32515273,0.00011095,2]
[399371145,1766323269352,-212.58165643,0.00011095,2]
[399371146,1766323272271,-353.76428519,0.00011095,2]
[399371147,1766323273701,-353.7132364,0.00011095,2]
[399371148,1766323278750,-175.919,0.00011095,2]
[399371149,1766323280893,-184.66639574,0.00011095,2]
[399371150,1766323283443,-250.73208057,0.00011095,2]
[399371151,1766323285496,-332.31613817,0.00011095,2]
[399371152,1766323285520,-51.71573289,0.00011116,2]
[399371154,1766323287629,-196.73459677,0.00010762,2]
[399371155,1766323289195,-291.13731484,0.00010762,2]
[399371163,1766323294294,-226.07774102,0.00010762,2]
[399371164,1766323297893,5000.0,0.00035616,30]
[399371165,1766323297974,-174.12443664,0.00010762,2]
[399371166,1766323301686,-187.96031507,0.00010762,2]
[399371167,1766323304627,-192.6675576,0.00010762,2]
[399371168,1766323308074,5000.0,0.00035616,30]
[399371169,1766323309777,-231.29803806,0.00010762,2]
[399371170,1766323309800,-40.54839593,0.00011086,2]
[399371171,1766323314171,-200.816033,0.00011086,2]
[399371172,1766323318148,-298.6552237,0.00010715,2]
[399371173,1766323320550,-525.74583952,0.00010715,2]
[399371175,1766323326161,151.0,0.00035616,30]
[399371176,1766323326435,-203.52895116,0.00010715,2]
[399371177,1766323327241,151.0,0.00035616,30]
[399371178,1766323327394,151.0,0.00035616,30]
[399371179,1766323328020,151.0,0.00035616,30]
[399371180,1766323328452,500.0,0.00035616,30]
[399371181,1766323328646,151.0,0.00035616,30]
[399371182,1766323328894,-199.59856978,0.00010715,2]
[399371183,1766323329119,500.0,0.00035616,30]
[399371184,1766323329265,151.0,0.00035616,30]
[399371185,1766323329338,200.0,0.00035616,30]
[399371186,1766323329896,151.0,0.00035616,30]
[399371187,1766323329980,200.0,0.00035616,30]
[399371188,1766323330978,151.0,0.00035616,30]
[399371189,1766323331019,249.0,0.00035616,30]
[399371190,1766323331624,151.0,0.00035616,30]
[399371191,1766323332205,200.0,0.00035616,30]
[399371192,1766323332311,151.0,0.00035616,30]
[399371193,1766323332823,200.0,0.00035616,30]
[399371194,1766323332977,151.0,0.00035616,30]
[399371195,1766323333317,-358.35482186,0.00010715,2]
[399371196,1766323333473,200.0,0.00035616,30]
[399371197,1766323333607,151.0,0.00035616,30]
[399371198,1766323334262,151.0,0.00035616,30]
[399371199,1766323334738,-255.95372301,0.00010715,2]
[399371200,1766323336878,-193.58152685,0.00010661,2]
[399371201,1766323338317,-247.40798431,0.00010661,2]
[399371202,1766323339492,500.0,0.00035616,30]
[399371203,1766323340154,542.48742341,0.00035616,30]
[399371204,1766323340976,-318.76636502,0.00010661,2]
[399371205,1766323342467,-157.76651282,0.00010661,2]
[399371206,1766323342490,-13.85348718,0.00010715,2]
[399371207,1766323345006,-294.8956781,0.00010715,2]
[399371208,1766323346611,-205.1043219,0.00010715,2]
[399371210,1766323350415,-527.2430719,0.00010715,2]
[399371214,1766323354839,-161.14895581,0.00010715,2]
[399371215,1766323356964,-159.99559836,0.00010715,2]
[399371216,1766323359496,-246.62979493,0.00010715,2]
[399371217,1766323361671,-215.26,0.00010715,2]
[399371218,1766323362755,2231.0,0.00035616,30]
[399371219,1766323364747,-425.26285651,0.00010715,2]
[399371220,1766323366316,-359.4926482,0.00010715,2]
[399371221,1766323370364,-466.18077783,0.00010715,2]
[399371222,1766323371882,2000.0,0.000356,32]
[399371223,1766323373837,-409.75895948,0.00010715,2]
[399371224,1766323376525,-180.99774507,0.00010715,2]
[399371225,1766323378047,-140.7189757,0.00010715,2]
[399371226,1766323378073,-112.9994888,0.00011085,2]
[399371227,1766323380975,-263.25217571,0.00011085,2]
[399371231,1766323383271,-187.24535868,0.00010923,2]
[399371233,1766323385188,-214.42464372,0.00010923,2]
[399371234,1766323388719,2000.0,0.000356,32]
[399371238,1766323389627,-228.04779414,0.00010922,2]
[399371240,1766323392102,-248.22244318,0.00010922,2]
[399371245,1766323393100,-527.78318328,0.00010922,2]
[399371250,1766323396800,-177.28603622,0.00010922,2]
[399371254,1766323399200,-18.66054318,0.00010922,2]
[399371255,1766323399223,-221.35707454,0.00010923,2]
[399371258,1766323400561,-174.7512689,0.00010923,2]
[399371259,1766323402520,-367.88526793,0.00010923,2]
[399371263,1766323406069,-387.54007369,0.00010923,2]
[399371268,1766323409112,-153.24473554,0.00010923,2]
[399371272,1766323411947,-201.49824492,0.00010867,2]
[399371273,1766323413492,-224.33258166,0.00010867,2]
[399371274,1766323416316,-407.90894343,0.00010867,2]
[399371276,1766323421881,-206.35231761,0.00010923,2]
[399371282,1766323423922,-152.83,0.00010923,2]
[399371283,1766323429561,-300.0,0.00010923,2]
[399371285,1766323431513,-344.64656696,0.00010923,2]
[399371288,1766323434672,-374.65291848,0.00010868,2]
[399371289,1766323437535,-198.36956023,0.00010868,2]
[399371290,1766323439546,205.99,5.224e-05,2]
[399371291,1766323439753,205.99,5.499e-05,2]
[399371292,1766323439950,205.99,5.773e-05,2]
[399371293,1766323440135,205.99,6.048e-05,2]
[399371294,1766323440171,-228.32095433,0.00010868,2]
[399371295,1766323440332,205.99,6.323e-05,2]
[399371296,1766323440581,205.99,6.598e-05,2]
[399371297,1766323440776,205.99,6.873e-05,2]
[399371298,1766323440999,205.99,7.148e-05,2]
[399371299,1766323441189,205.99,7.423e-05,2]
[399371300,1766323441391,205.99,7.698e-05,2]
[399371301,1766323441591,205.99,7.973e-05,2]
[399371302,1766323441810,205.99,8.248e-05,2]
[399371303,1766323442005,205.99,8.523e-05,2]
[399371304,1766323442194,174.48033735,8.798e-05,2]
[399371305,1766323442217,31.50966265,8.798e-05,2]
[399371306,1766323442386,205.99,9.073e-05,2]
[399371307,1766323442596,205.99,9.348e-05,2]
[399371308,1766323442784,205.99,9.622e-05,2]
[399371309,1766323442998,205.99,9.897e-05,2]
[399371310,1766323443201,205.99,0.00010172,2]
[399371311,1766323443396,205.99,0.00010447,2]
[399371312,1766323443700,-401.19922964,0.00010868,2]
[399371316,1766323447285,-168.80583206,0.00010868,2]
[399371317,1766323449635,-223.72268754,0.00010868,2]
[399371318,1766323452659,6081.54,0.00010438,2]
[399371319,1766323454447,-568.79606872,0.00010868,2]
[399371320,1766323454471,-142.47618204,0.00010922,2]
[399371323,1766323457597,-157.52381796,0.00010922,2]
[399371324,1766323457620,-37.47618204,0.00010922,2]
[399371325,1766323461454,-240.55380638,0.00010922,2]
[399371326,1766323462834,-21.97001158,0.00010922,2]
[399371327,1766323462856,-239.92416635,0.00010923,2]
[399371328,1766323469627,-217.96492571,0.00010923,2]
[399371329,1766323471644,-175.35137943,0.00010923,2]
[399371330,1766323473085,-255.23554207,0.00010923,2]
[399371331,1766323474971,-236.43161081,0.00010923,2]
[399371333,1766323478109,-276.2619465,0.00010923,2]
[399371334,1766323479127,-588.96387051,0.00010923,2]
[399371337,1766323481986,-195.0,0.00010923,2]
[399371338,1766323483637,-300.0,0.00010923,2]
[399371339,1766323487496,-420.15232677,0.00010923,2]
[399371340,1766323491959,-155.58776809,0.00010923,2]
[399371341,1766323494158,-247.54998134,0.00010923,2]
[399371342,1766323495641,-163.11636975,0.00010923,2]
[399371343,1766323497151,-748.0514811,0.00010923,2]
[399371344,1766323500835,-306.08161063,0.00010923,2]
[399371347,1766323503300,-193.0,0.00010868,2]
[399371350,1766323505175,-300.0,0.00010868,2]
[399371352,1766323506664,-36.49345819,0.00010868,2]
[399371353,1766323506688,-203.9016105,0.00010868,2]
[399371354,1766323508102,-187.04527632,0.00010868,2]
[399371356,1766323511831,-288.91015564,0.00010868,2]
[399371357,1766323513436,-188.27973739,0.00010868,2]
[399371373,1766323515437,-231.98273053,0.00010868,2]
[399371378,1766323515979,1000.0,0.0003561,30]
[399371414,1766323517903,-250.0,0.00010868,2]
[399371415,1766323519347,-295.54266189,0.00010868,2]
[399371416,1766323520790,-162.31733358,0.00010868,2]
[399371417,1766323522733,-195.0,0.00010868,2]
[399371418,1766323525304,-151.40513183,0.00010868,2]
[399371419,1766323525728,1000.0,0.0003561,30]
[399371420,1766323527871,-191.95324736,0.00010868,2]
[399371422,1766323530532,-159.50087562,0.00010868,2]
[399371423,1766323530558,-123.69875131,0.00010922,2]
[399371424,1766323534036,-243.47827591,0.00010922,2]
[399371425,1766323534623,500.0,0.0003561,30]
[399371426,1766323536101,500.0,0.0003561,30]
[399371427,1766323537161,-176.92508637,0.00010922,2]
[399371428,1766323539038,-421.96431454,0.00010922,2]
[399371429,1766323541022,320.22649543,0.0002,30]
[399371430,1766323541704,-175.91238372,0.00010922,2]
[399371431,1766323543508,-58.02118815,0.00010922,2]
[399371432,1766323543533,-126.71325987,0.00010923,2]
[399371434,1766323545815,-349.95604589,0.00010923,2]
[399371435,1766323549986,-265.28444842,0.00010923,2]
[399371436,1766323551509,-339.97032989,0.00010923,2]
[399371437,1766323554214,-307.94665852,0.00010923,2]
[399371438,1766323555991,500.0,0.0003561,30]
[399371439,1766323557972,-242.0,0.00010923,2]
[399371440,1766323560531,-267.9594923,0.00010923,2]
[399371441,1766323561664,500.0,0.0003561,30]
[399371442,1766323564031,10000.01,0.00010396,2]
[399371443,1766323564055,1501.03,0.00010396,2]
[399371445,1766323568800,-182.8505077,0.00010923,2]
[399371446,1766323575469,500.0,0.0003561,30]
[399371449,1766323584823,500.0,0.0003561,30]
[399371452,1766323593835,671.0,0.0003561,30]
[399371459,1766323625549,578.20924308,0.00035616,30]
[399371462,1766323647412,620.0,0.00035616,30]
[399371463,1766323652092,200.0,0.00035616,30]
[399371464,1766323665065,2791.84103122,0.00013,15]
[399371469,1766323734751,322.99,0.00010284,2]
[399371470,1766323740529,1000.0,0.00035615,30]
[399371471,1766323740762,1000.0,0.00035599,30]
[399371472,1766323759149,-156.90625241,0.00010859,2]
[399371473,1766323759171,-5230.38374175,0.00010923,2]
[399371481,1766323802020,-250.0,0.000109,2]
[399371498,1766323831346,-527.78318328,0.000108,2]
[399371499,1766323831356,-782.30619494,0.00010885,2]
[399371500,1766323831366,-183.74826306,0.000109,2]
[399371501,1766323831414,-291.47,0.000109,2]
[399371502,1766323831475,-501.11762586,0.000109,2]
[399371503,1766323831485,-239.0,0.000109,2]
[399371504,1766323831495,-2814.3737292,0.00010912,2]
[399371505,1766323831505,-1768.44052243,0.00010923,2]
[399371506,1766323831514,-150.0,0.00010959,2]
[399371507,1766323831524,-999.0,0.00010959,3]
[399371508,1766323831533,-650.20997509,0.00010984,2]
[399371509,1766323831544,-549.79002491,0.00010984,2]
[399371510,1766323831554,-300.0,0.00010984,2]
[399371511,1766323831563,-300.0,0.00010984,2]
[399371512,1766323831573,-1200.0,0.00010984,2]
[399371513,1766323831584,-150.0,0.00010984,2]
[399371514,1766323831594,-15752.14414372,0.00010985,2]
[399371515,1766323831605,-882.6000028,0.00010985,2]
[399371523,1766323832103,-2898.18394227,0.00010985,2]
[399371524,1766323832417,230.19701669,0.00010886,2]
[399371525,1766323833561,-370.57748756,0.00010886,2]
[399371529,1766323838257,-594.2092946,0.00010886,2]
[399371530,1766323838268,-579.55406198,0.00010985,2]
[399371531,1766323838281,-6546.92324925,0.00010985,2]
[399371533,1766323838294,-300.7336407,0.00010985,2]
[399371534,1766323838323,-2177.62818745,0.00010985,2]
[399371535,1766323838450,-410.4098757,0.00010985,2]
[399371536,1766323838527,-970451.82289613,0.00010985,2]
[399371537,1766323838539,-220.1958,0.00010986,2]
[399371538,1766323838550,-578.5292,0.00010986,2]
[399371539,1766323838562,-2500.0,0.00010995,2]
[399371540,1766323838574,-782.30619494,0.00010999,2]
[399371541,1766323838586,-9394.26035171,0.00011,2]
[399371542,1766323838597,-195.0,0.0001102,2]
[399371543,1766323838609,-300.0,0.0001102,2]
[399371544,1766323838620,-1345.44458259,0.00011076,2]
[399371545,1766323838632,-151.0,0.00011083,2]
[399371546,1766323838642,-500.0,0.00011084,2]
[399371547,1766323838653,-500.0,0.00011084,2]
[399371548,1766323838668,-230.22359054,0.00011084,2]
[399371549,1766323838679,-500.0,0.00011084,2]
[399371550,1766323838694,-401.51586143,0.00011084,2]
[399371551,1766323838705,-500.0,0.00011084,2]
[399371553,1766323838716,-500.0,0.00011084,2]
[399371555,1766323838726,-500.0,0.00011084,2]
[399371557,1766323838736,-500.0,0.00011084,2]
[399371559,1766323838747,-500.0,0.00011084,2]
[399371561,1766323838757,-500.0,0.00011084,2]
[399371562,1766323838767,-500.0,0.00011084,2]
[399371564,1766323838777,-500.0,0.00011084,2]
[399371566,1766323838788,-635.9629281,0.00011084,2]
[399371569,1766323838798,-394.09268001,0.00011084,2]
[399371571,1766323838808,-500.0,0.00011084,2]
[399371573,1766323838818,-500.0,0.00011084,2]
[399371575,1766323838828,-500.0,0.00011084,2]
[399371577,1766323838839,-500.0,0.00011084,2]
[399371579,1766323838850,-500.0,0.00011084,2]
[399371581,1766323838860,-500.0,0.00011084,2]
[399371583,1766323838871,-500.0,0.00011084,2]
[399371585,1766323838881,-500.0,0.00011084,2]
[399371587,1766323838892,-500.0,0.00011084,2]
[399371589,1766323838903,-500.0,0.00011084,2]
[399371591,1766323838913,-500.0,0.00011084,2]
[399371593,1766323838923,-500.0,0.00011084,2]
[399371595,1766323838934,-500.0,0.00011084,2]
[399371597,1766323838945,-500.0,0.00011084,2]
[399371599,1766323838955,-500.0,0.00011084,2]
[399371601,1766323838965,-500.0,0.00011084,2]
[399371603,1766323838976,-500.0,0.00011084,2]
[399371605,1766323838986,-500.0,0.00011084,2]
[399371607,1766323838997,-500.0,0.00011084,2]
[399371609,1766323839008,-500.0,0.00011084,2]
[399371611,1766323839019,-500.0,0.00011084,2]
[399371613,1766323839029,-500.0,0.00011084,2]
[399371614,1766323839040,-500.0,0.00011084,2]
[399371615,1766323839051,-500.0,0.00011084,2]
[399371616,1766323839061,-500.0,0.00011084,2]
[399371617,1766323839078,-500.0,0.00011084,2]
[399371618,1766323839091,-500.0,0.00011084,2]
[399371619,1766323839104,-500.0,0.00011084,2]
[399371621,1766323839114,-500.0,0.00011084,2]
[399371623,1766323839125,-202.19544668,0.00011084,2]
[399371624,1766323839136,-500.0,0.00011084,2]
[399371625,1766323839147,-500.0,0.00011084,2]
[399371626,1766323839159,-500.0,0.00011084,2]
[399371627,1766323839170,-500.0,0.00011084,2]
[399371629,1766323839181,-500.0,0.00011084,2]
[399371630,1766323839193,-500.0,0.00011084,2]
[399371635,1766323839204,-500.0,0.00011084,2]
[399371636,1766323839728,-500.0,0.00011084,2]
[399371637,1766323839739,-500.0,0.00011084,2]
[399371638,1766323839750,-500.0,0.00011084,2]
[399371639,1766323839761,-500.0,0.00011084,2]
[399371640,1766323839771,-500.0,0.00011084,2]
[399371641,1766323839782,-500.0,0.00011084,2]
[399371642,1766323839792,-500.0,0.00011084,2]
[399371643,1766323839802,-500.0,0.00011084,2]
[399371644,1766323839811,-500.0,0.00011084,2]
[399371645,1766323839821,-500.0,0.00011084,2]
[399371646,1766323839831,-500.0,0.00011084,2]
[399371647,1766323839842,-500.0,0.00011084,2]
[399371648,1766323839852,-500.0,0.00011084,2]